[Event "*** Titled Tuesday Blitz"]
[Site "Chess.com"]
[Date "2020.03.03"]
[Round "3"]
[White "MathiasWomacka"]
[Black "HouseOfDurin"]
[Result "1-0"]
[WhiteElo "2398"]
[BlackElo "2088"]
[TimeControl "180+1"]
[EndTime "13:30:49 PST"]
[Termination "MathiasWomacka won by resignation"]

1. e4 {[%clk 0:03:00.9]} 1... c5 {[%clk 0:03:00.2]} 2. Nf3 {[%clk 0:03:00.7]}
2... Nc6 {[%clk 0:03:00.7]} 3. d4 {[%clk 0:03:01]} 3... cxd4 {[%clk 0:03:01.6]}
4. Nxd4 {[%clk 0:03:01.7]} 4... e5 {[%clk 0:03:02.2]} 5. Nb5 {[%clk 0:03:01]}
5... d6 {[%clk 0:03:02.5]} 6. c4 {[%clk 0:03:01.1]} 6... Be6 {[%clk 0:03:02.2]}
7. N1c3 {[%clk 0:02:59.3]} 7... a6 {[%clk 0:03:02.3]} 8. Na3 {[%clk 0:02:59.4]}
8... Rc8 {[%clk 0:03:02.9]} 9. Be2 {[%clk 0:02:54.4]} 9... Nf6 {[%clk
0:03:02.2]} 10. O-O {[%clk 0:02:53.5]} 10... Be7 {[%clk 0:03:02]} 11. Be3 {[%clk
0:02:51.3]} 11... O-O {[%clk 0:02:57.5]} 12. Qd2 {[%clk 0:02:48]} 12... Na5
{[%clk 0:02:18.9]} 13. b3 {[%clk 0:02:41.6]} 13... Ng4 {[%clk 0:01:57.2]} 14.
Bxg4 {[%clk 0:02:37.4]} 14... Bxg4 {[%clk 0:01:58.1]} 15. Nd5 {[%clk 0:02:34.7]}
15... Nc6 {[%clk 0:01:49.6]} 16. f3 {[%clk 0:02:19.2]} 16... Be6 {[%clk
0:01:48.9]} 17. Rfd1 {[%clk 0:02:19.5]} 17... Bxd5 {[%clk 0:01:48.5]} 18. Qxd5
{[%clk 0:02:19.4]} 18... Qa5 {[%clk 0:01:36.5]} 19. Qxa5 {[%clk 0:02:14.8]}
19... Nxa5 {[%clk 0:01:37.4]} 20. Bb6 {[%clk 0:02:03.6]} 20... Nc6 {[%clk
0:01:28.6]} 21. Nc2 {[%clk 0:02:03.5]} 21... Bd8 {[%clk 0:01:21.9]} 22. Bf2
{[%clk 0:02:00.3]} 22... Ba5 {[%clk 0:01:11.2]} 23. Rxd6 {[%clk 0:01:57]} 23...
Rfd8 {[%clk 0:01:10.6]} 24. Rad1 {[%clk 0:01:55.9]} 24... Bc7 {[%clk 0:00:59]}
25. Rxd8+ {[%clk 0:01:48.5]} 25... Rxd8 {[%clk 0:00:59.9]} 26. Rxd8+ {[%clk
0:01:47.3]} 26... Bxd8 {[%clk 0:01:00.1]} 27. Kf1 {[%clk 0:01:44.5]} 27... f6
{[%clk 0:00:54.3]} 28. c5 {[%clk 0:01:34.8]} 28... Kf7 {[%clk 0:00:52.9]} 29.
Ke2 {[%clk 0:01:34.1]} 29... Ke6 {[%clk 0:00:52.6]} 30. Kd3 {[%clk 0:01:34.2]}
30... h5 {[%clk 0:00:29.6]} 31. b4 {[%clk 0:01:31.7]} 31... g5 {[%clk
0:00:24.7]} 32. Kc4 {[%clk 0:01:22.9]} 32... f5 {[%clk 0:00:20]} 33. exf5+
{[%clk 0:01:19]} 33... Kxf5 {[%clk 0:00:20.9]} 34. Ne3+ {[%clk 0:01:18.7]} 34...
Ke6 {[%clk 0:00:20.4]} 35. Nd5 {[%clk 0:01:12.3]} 35... Ne7 {[%clk 0:00:18.1]}
36. Nxe7 {[%clk 0:01:09.9]} 36... Bxe7 {[%clk 0:00:19]} 37. a4 {[%clk
0:01:03.1]} 37... Kf5 {[%clk 0:00:18.9]} 38. Kd5 {[%clk 0:01:02.4]} 38... g4
{[%clk 0:00:15.4]} 39. Be3 {[%clk 0:00:58.1]} 39... gxf3 {[%clk 0:00:14.9]} 40.
gxf3 {[%clk 0:00:59]} 40... h4 {[%clk 0:00:10]} 41. h3 {[%clk 0:00:57.2]} 41...
Bf8 {[%clk 0:00:07.8]} 42. b5 {[%clk 0:00:55.6]} 42... axb5 {[%clk 0:00:08.1]}
43. axb5 {[%clk 0:00:56.5]} 43... Be7 {[%clk 0:00:06.1]} 44. c6 {[%clk
0:00:47.1]} 44... bxc6+ {[%clk 0:00:07]} 45. bxc6 {[%clk 0:00:46.8]} 45... Bd8
{[%clk 0:00:06.7]} 46. Kd6 {[%clk 0:00:47]} 46... e4 {[%clk 0:00:06.6]} 47. f4
{[%clk 0:00:46.9]} 47... Ba5 {[%clk 0:00:02.5]} 48. c7 {[%clk 0:00:44.3]} 48...
Bxc7+ {[%clk 0:00:02.5]} 49. Kxc7 {[%clk 0:00:45.2]} 49... Ke6 {[%clk
0:00:02.8]} 50. Kc6 {[%clk 0:00:45.3]} 50... Kf6 {[%clk 0:00:02.1]} 51. Kd5
{[%clk 0:00:45]} 51... Kf5 {[%clk 0:00:02.3]} 52. Kd4 {[%clk 0:00:45.2]} 52...
Kf6 {[%clk 0:00:02.1]} 53. Kxe4 {[%clk 0:00:45.2]} 53... Ke6 {[%clk 0:00:03]}
54. Bd4 {[%clk 0:00:43.7]} 54... Kf7 {[%clk 0:00:02.7]} 1-0

[Event "*** Titled Tuesday Blitz"]
[Site "Chess.com"]
[Date "2020.03.03"]
[Round "3"]
[White "Maikrosoft63"]
[Black "Supernotar"]
[Result "0-1"]
[WhiteElo "2573"]
[BlackElo "2792"]
[TimeControl "180+1"]
[EndTime "13:30:51 PST"]
[Termination "Supernotar won on time"]

1. e4 {[%clk 0:03:00.9]} 1... c6 {[%clk 0:02:54.3]} 2. d4 {[%clk 0:03:00.2]}
2... d5 {[%clk 0:02:54.2]} 3. exd5 {[%clk 0:03:01.1]} 3... cxd5 {[%clk
0:02:54.2]} 4. Bf4 {[%clk 0:03:01.5]} 4... Nc6 {[%clk 0:02:51.9]} 5. c3 {[%clk
0:03:01.4]} 5... Bf5 {[%clk 0:02:50]} 6. Nd2 {[%clk 0:03:01]} 6... e6 {[%clk
0:02:47.6]} 7. Ngf3 {[%clk 0:02:59.8]} 7... Bd6 {[%clk 0:02:45.5]} 8. Bxd6
{[%clk 0:02:59.3]} 8... Qxd6 {[%clk 0:02:45.2]} 9. Nh4 {[%clk 0:02:59.7]} 9...
Bg6 {[%clk 0:02:43.8]} 10. Nxg6 {[%clk 0:02:59.7]} 10... hxg6 {[%clk 0:02:43.8]}
11. g3 {[%clk 0:02:59.5]} 11... Nf6 {[%clk 0:02:42.8]} 12. Bd3 {[%clk
0:02:58.5]} 12... O-O {[%clk 0:02:28.8]} 13. f4 {[%clk 0:02:56.5]} 13... Ne7
{[%clk 0:02:27.4]} 14. O-O {[%clk 0:02:55.1]} 14... Nf5 {[%clk 0:02:27.1]} 15.
Qe2 {[%clk 0:02:51.4]} 15... Rab8 {[%clk 0:02:23]} 16. Nf3 {[%clk 0:02:46.2]}
16... a6 {[%clk 0:02:19.9]} 17. a4 {[%clk 0:02:41.1]} 17... Qc7 {[%clk
0:02:13.6]} 18. Ne5 {[%clk 0:02:40.6]} 18... Nd6 {[%clk 0:02:12.9]} 19. g4
{[%clk 0:02:30.6]} 19... b5 {[%clk 0:02:07.6]} 20. axb5 {[%clk 0:02:27.7]} 20...
axb5 {[%clk 0:02:07.3]} 21. f5 {[%clk 0:02:27.9]} 21... gxf5 {[%clk 0:02:01.7]}
22. gxf5 {[%clk 0:02:28.8]} 22... Nxf5 {[%clk 0:01:42.2]} 23. Bxf5 {[%clk
0:02:27]} 23... exf5 {[%clk 0:01:42.4]} 24. Rxf5 {[%clk 0:02:27.4]} 24... Ne4
{[%clk 0:01:40]} 25. Kh1 {[%clk 0:02:22]} 25... Rb6 {[%clk 0:01:28.1]} 26. Rg1
{[%clk 0:02:17.8]} 26... Rh6 {[%clk 0:01:24.3]} 27. Qe3 {[%clk 0:01:55.1]} 27...
Qd6 {[%clk 0:01:13.1]} 28. Qf4 {[%clk 0:01:38]} 28... Qe6 {[%clk 0:01:06.3]} 29.
Ng4 {[%clk 0:01:14.7]} 29... Rg6 {[%clk 0:00:58.9]} 30. h4 {[%clk 0:01:09.6]}
30... f6 {[%clk 0:00:53.6]} 31. Nh6+ {[%clk 0:00:58.8]} 31... Kh7 {[%clk
0:00:48.6]} 32. Rxg6 {[%clk 0:00:57.3]} 32... Kxg6 {[%clk 0:00:47.5]} 33. h5+
{[%clk 0:00:26.4]} 33... Kh7 {[%clk 0:00:47.3]} 34. Ng4 {[%clk 0:00:18.9]} 34...
Ng3+ {[%clk 0:00:43.1]} 35. Qxg3 {[%clk 0:00:19.1]} 35... Qxf5 {[%clk
0:00:42.8]} 36. h6 {[%clk 0:00:20]} 36... Qf1+ {[%clk 0:00:26.5]} 37. Kh2 {[%clk
0:00:19.8]} 37... Re8 {[%clk 0:00:25.8]} 38. Ne5 {[%clk 0:00:12.9]} 38... Qe2+
{[%clk 0:00:21.4]} 39. Kg1 {[%clk 0:00:13]} 39... g5 {[%clk 0:00:18.9]} 40. Nf3
{[%clk 0:00:06.4]} 40... Kxh6 {[%clk 0:00:12.8]} 41. Qh3+ {[%clk 0:00:00.3]}
41... Kg6 {[%clk 0:00:10.3]} 42. Qg3 {[%clk 0:00:01.2]} 42... Re3 {[%clk
0:00:08.3]} 0-1

[Event "*** Titled Tuesday Blitz"]
[Site "Chess.com"]
[Date "2020.03.03"]
[Round "3"]
[White "Firouzja2003"]
[Black "temus_galaktionov"]
[Result "1-0"]
[WhiteElo "3064"]
[BlackElo "2752"]
[TimeControl "180+1"]
[EndTime "13:30:57 PST"]
[Termination "Firouzja2003 won by resignation"]

1. h4 {[%clk 0:03:00.1]} 1... c6 {[%clk 0:02:54.5]} 2. e4 {[%clk 0:02:58.1]}
2... g6 {[%clk 0:02:47.5]} 3. h5 {[%clk 0:02:57.8]} 3... Bg7 {[%clk 0:02:47.7]}
4. d4 {[%clk 0:02:57.5]} 4... Qb6 {[%clk 0:02:47.9]} 5. Nf3 {[%clk 0:02:56]}
5... d6 {[%clk 0:02:48.1]} 6. h6 {[%clk 0:02:55.4]} 6... Bf6 {[%clk 0:02:46.9]}
7. e5 {[%clk 0:02:54.6]} 7... dxe5 {[%clk 0:02:41.3]} 8. dxe5 {[%clk 0:02:55.5]}
8... Bxe5 {[%clk 0:02:39.1]} 9. Nxe5 {[%clk 0:02:54.3]} 9... Qa5+ {[%clk
0:02:39.2]} 10. Bd2 {[%clk 0:02:54.2]} 10... Qxe5+ {[%clk 0:02:39.1]} 11. Be2
{[%clk 0:02:55.1]} 11... Nf6 {[%clk 0:02:32]} 12. Bc3 {[%clk 0:02:55.2]} 12...
Qc7 {[%clk 0:02:31.9]} 13. Qd4 {[%clk 0:02:55.3]} 13... Be6 {[%clk 0:02:29.9]}
14. Nd2 {[%clk 0:02:55.1]} 14... Nbd7 {[%clk 0:02:29.4]} 15. O-O-O {[%clk
0:02:54.9]} 15... c5 {[%clk 0:02:28.6]} 16. Qh4 {[%clk 0:02:53.9]} 16... O-O-O
{[%clk 0:02:28.4]} 17. Nc4 {[%clk 0:02:47.7]} 17... Rhe8 {[%clk 0:02:25.7]} 18.
Ba5 {[%clk 0:02:43.6]} 18... b6 {[%clk 0:02:25.5]} 19. Bc3 {[%clk 0:02:40.3]}
19... Nd5 {[%clk 0:02:25.1]} 20. Bd2 {[%clk 0:02:38.7]} 20... Nb4 {[%clk
0:02:15.6]} 21. Bf4 {[%clk 0:02:33]} 21... Qb7 {[%clk 0:01:59.7]} 22. a3 {[%clk
0:02:29.6]} 22... Nc6 {[%clk 0:01:55.1]} 23. Rhe1 {[%clk 0:02:24.5]} 23... Nd4
{[%clk 0:01:50.9]} 24. Bd3 {[%clk 0:02:23.7]} 24... f6 {[%clk 0:01:35.6]} 25.
Bh2 {[%clk 0:02:21.9]} 25... Bxc4 {[%clk 0:01:19.4]} 26. Bxc4 {[%clk 0:02:20.9]}
26... e5 {[%clk 0:01:19.6]} 27. c3 {[%clk 0:02:18.3]} 27... Nf5 {[%clk
0:01:19.5]} 28. Qg4 {[%clk 0:02:18]} 28... Nxh6 {[%clk 0:01:10.8]} 29. Qh3
{[%clk 0:02:18.3]} 29... Nf5 {[%clk 0:01:09.8]} 30. Bd5 {[%clk 0:02:18.2]} 30...
Qc7 {[%clk 0:01:02.5]} 31. Qxh7 {[%clk 0:02:12.1]} 31... Rh8 {[%clk 0:01:00.7]}
32. Qxg6 {[%clk 0:02:12.3]} 32... Ne7 {[%clk 0:00:57.8]} 33. Qe4 {[%clk
0:01:35.4]} 33... Nxd5 {[%clk 0:00:56.3]} 34. Rxd5 {[%clk 0:01:35.4]} 34... Rxh2
{[%clk 0:00:55.8]} 35. Red1 {[%clk 0:01:36]} 35... Rhh8 {[%clk 0:00:21.6]} 36.
Rxd7 {[%clk 0:01:33]} 36... Rxd7 {[%clk 0:00:17.9]} 37. Qa8+ {[%clk 0:01:32.6]}
37... Qb8 {[%clk 0:00:18.1]} 38. Qxb8+ {[%clk 0:01:33.2]} 38... Kxb8 {[%clk
0:00:19]} 39. Rxd7 {[%clk 0:01:33.9]} 39... Rh2 {[%clk 0:00:17.4]} 40. Rg7
{[%clk 0:01:33.2]} 40... f5 {[%clk 0:00:16.6]} 41. Kd2 {[%clk 0:01:27.3]} 41...
f4 {[%clk 0:00:13.3]} 42. Ke2 {[%clk 0:01:22.3]} 42... e4 {[%clk 0:00:10.3]} 43.
Rg4 {[%clk 0:01:10.1]} 43... e3 {[%clk 0:00:10.4]} 44. fxe3 {[%clk 0:01:07.5]}
44... fxe3 {[%clk 0:00:11.3]} 45. Rg7 {[%clk 0:01:04.5]} 45... Rh1 {[%clk
0:00:12.2]} 46. Kxe3 {[%clk 0:01:03.6]} 46... Rb1 {[%clk 0:00:10.9]} 47. g4
{[%clk 0:00:53.6]} 47... Rxb2 {[%clk 0:00:10.7]} 48. g5 {[%clk 0:00:54.2]} 48...
Rb3 {[%clk 0:00:10.9]} 49. Kd3 {[%clk 0:00:54.3]} 49... Rxa3 {[%clk 0:00:10.8]}
50. g6 {[%clk 0:00:54.6]} 50... Ra1 {[%clk 0:00:10.2]} 51. Rf7 {[%clk
0:00:54.8]} 51... Rd1+ {[%clk 0:00:01.6]} 52. Kc2 {[%clk 0:00:54.7]} 52... Rg1
{[%clk 0:00:01.7]} 53. g7 {[%clk 0:00:54.9]} 53... Rg2+ {[%clk 0:00:02.6]} 54.
Kb3 {[%clk 0:00:54.4]} 54... b5 {[%clk 0:00:03.5]} 55. Rf8+ {[%clk 0:00:53.6]}
55... Kb7 {[%clk 0:00:04.1]} 56. g8=Q {[%clk 0:00:54.2]} 56... Rxg8 {[%clk
0:00:05]} 57. Rxg8 {[%clk 0:00:54.2]} 57... a6 {[%clk 0:00:05.4]} 58. Rg6 {[%clk
0:00:54.2]} 58... Ka7 {[%clk 0:00:05.6]} 59. Rc6 {[%clk 0:00:53.1]} 59... c4+
{[%clk 0:00:04.8]} 60. Kb4 {[%clk 0:00:53.5]} 60... Kb7 {[%clk 0:00:05.7]} 61.
Rh6 {[%clk 0:00:53.9]} 61... Ka7 {[%clk 0:00:04.6]} 62. Ka5 {[%clk 0:00:54.4]}
1-0

[Event "*** Titled Tuesday Blitz"]
[Site "Chess.com"]
[Date "2020.03.03"]
[Round "3"]
[White "Eloist"]
[Black "nonscitis"]
[Result "0-1"]
[WhiteElo "2290"]
[BlackElo "2580"]
[TimeControl "180+1"]
[EndTime "13:31:06 PST"]
[Termination "nonscitis won on time"]

1. e4 {[%clk 0:03:00.9]} 1... c5 {[%clk 0:02:59.7]} 2. Nf3 {[%clk 0:02:59.8]}
2... Nc6 {[%clk 0:03:00.1]} 3. Bb5 {[%clk 0:02:59.6]} 3... e6 {[%clk 0:02:59.5]}
4. Bxc6 {[%clk 0:02:59.1]} 4... bxc6 {[%clk 0:02:51.9]} 5. d3 {[%clk 0:02:58.2]}
5... f6 {[%clk 0:02:48.2]} 6. Nh4 {[%clk 0:02:38.7]} 6... Ne7 {[%clk 0:02:46.7]}
7. f4 {[%clk 0:02:33.1]} 7... d6 {[%clk 0:02:39.7]} 8. O-O {[%clk 0:02:29.7]}
8... g6 {[%clk 0:02:34.7]} 9. c4 {[%clk 0:02:27.4]} 9... Bg7 {[%clk 0:02:33.7]}
10. Nc3 {[%clk 0:02:27.2]} 10... O-O {[%clk 0:02:32.7]} 11. Be3 {[%clk
0:02:26.7]} 11... f5 {[%clk 0:02:32.1]} 12. Nf3 {[%clk 0:02:12.8]} 12... Rb8
{[%clk 0:02:30.2]} 13. Qd2 {[%clk 0:02:06.1]} 13... Qa5 {[%clk 0:02:28.5]} 14.
Rab1 {[%clk 0:02:01.9]} 14... Bd7 {[%clk 0:02:11.7]} 15. e5 {[%clk 0:01:49.7]}
15... Nc8 {[%clk 0:01:48.7]} 16. b3 {[%clk 0:01:39.9]} 16... Rb6 {[%clk
0:01:38.8]} 17. Na4 {[%clk 0:01:32.1]} 17... Qxd2 {[%clk 0:01:33.6]} 18. Bxd2
{[%clk 0:01:22.5]} 18... Rb8 {[%clk 0:01:30.1]} 19. exd6 {[%clk 0:01:11]} 19...
Nxd6 {[%clk 0:01:27.8]} 20. Nxc5 {[%clk 0:01:08.7]} 20... Bc8 {[%clk 0:01:27.7]}
21. Rfe1 {[%clk 0:01:08]} 21... Re8 {[%clk 0:01:27.1]} 22. Re2 {[%clk 0:01:04]}
22... Nb7 {[%clk 0:01:26.1]} 23. Na6 {[%clk 0:01:02.5]} 23... Bd7 {[%clk
0:01:21.5]} 24. Nxb8 {[%clk 0:01:01.6]} 24... Rxb8 {[%clk 0:01:22.4]} 25. Be3
{[%clk 0:00:43.7]} 25... a5 {[%clk 0:01:21.2]} 26. Bd4 {[%clk 0:00:41.8]} 26...
Bf8 {[%clk 0:01:18.4]} 27. Ne5 {[%clk 0:00:35.8]} 27... Be8 {[%clk 0:01:18]} 28.
Bc3 {[%clk 0:00:33.5]} 28... Ra8 {[%clk 0:01:17]} 29. Rbe1 {[%clk 0:00:32.9]}
29... Bc5+ {[%clk 0:01:15.6]} 30. d4 {[%clk 0:00:31.6]} 30... Bf8 {[%clk
0:01:16.5]} 31. Nf3 {[%clk 0:00:31.3]} 31... Bd7 {[%clk 0:01:14.5]} 32. Ng5
{[%clk 0:00:30.8]} 32... Nd8 {[%clk 0:01:13.3]} 33. Kf2 {[%clk 0:00:27.1]} 33...
h6 {[%clk 0:01:12.2]} 34. Nf3 {[%clk 0:00:26.8]} 34... Nb7 {[%clk 0:01:10.6]}
35. Ne5 {[%clk 0:00:26.7]} 35... Be8 {[%clk 0:01:10.4]} 36. g4 {[%clk
0:00:26.7]} 36... Nd6 {[%clk 0:01:08.2]} 37. h3 {[%clk 0:00:23.1]} 37... a4
{[%clk 0:01:05.9]} 38. b4 {[%clk 0:00:21.8]} 38... Bg7 {[%clk 0:01:03.9]} 39.
Nf3 {[%clk 0:00:13.7]} 39... Ne4+ {[%clk 0:01:02.2]} 40. Rxe4 {[%clk 0:00:12.9]}
40... fxe4 {[%clk 0:01:03.1]} 41. Rxe4 {[%clk 0:00:13.3]} 41... Bd7 {[%clk
0:01:01.8]} 42. a3 {[%clk 0:00:13.4]} 42... Rb8 {[%clk 0:00:58.1]} 43. Ne5
{[%clk 0:00:13.8]} 43... Be8 {[%clk 0:00:56.5]} 44. Ke2 {[%clk 0:00:14]} 44...
g5 {[%clk 0:00:55.4]} 45. fxg5 {[%clk 0:00:12.7]} 45... hxg5 {[%clk 0:00:56.3]}
46. Nf3 {[%clk 0:00:12.5]} 46... Bf6 {[%clk 0:00:47.9]} 47. Rxe6 {[%clk
0:00:12.2]} 47... Kf7 {[%clk 0:00:47.5]} 48. Rxc6 {[%clk 0:00:12.1]} 48... Bxc6
{[%clk 0:00:46.6]} 49. d5 {[%clk 0:00:10]} 49... Bxc3 {[%clk 0:00:45.9]} 50.
dxc6 {[%clk 0:00:10.1]} 50... Bb2 {[%clk 0:00:37.2]} 51. b5 {[%clk 0:00:10.1]}
51... Bxa3 {[%clk 0:00:35.8]} 52. c7 {[%clk 0:00:09.5]} 52... Re8+ {[%clk
0:00:35.8]} 53. Kd3 {[%clk 0:00:08.7]} 53... Bd6 {[%clk 0:00:36]} 54. b6 {[%clk
0:00:08.5]} 54... Bxc7 {[%clk 0:00:34.9]} 55. bxc7 {[%clk 0:00:07.8]} 55... Rc8
{[%clk 0:00:34.9]} 56. Nxg5+ {[%clk 0:00:03.7]} 56... Ke7 {[%clk 0:00:34.9]} 57.
Kc3 {[%clk 0:00:02.4]} 57... Rxc7 {[%clk 0:00:34.3]} 58. Ne4 {[%clk 0:00:02.4]}
58... a3 {[%clk 0:00:34]} 59. c5 {[%clk 0:00:01.7]} 59... Ra7 {[%clk 0:00:32.5]}
0-1

[Event "*** Titled Tuesday Blitz"]
[Site "Chess.com"]
[Date "2020.03.03"]
[Round "3"]
[White "Carnivoras"]
[Black "ChadBiryani"]
[Result "0-1"]
[WhiteElo "2664"]
[BlackElo "2451"]
[TimeControl "180+1"]
[EndTime "13:31:09 PST"]
[Termination "ChadBiryani won on time"]

1. d4 {[%clk 0:03:00.9]} 1... Nf6 {[%clk 0:02:56.2]} 2. Nf3 {[%clk 0:03:01.6]}
2... d5 {[%clk 0:02:54.4]} 3. Bg5 {[%clk 0:03:02.1]} 3... Ne4 {[%clk 0:02:50.6]}
4. Bf4 {[%clk 0:03:01.9]} 4... c5 {[%clk 0:02:50.5]} 5. e3 {[%clk 0:03:01.9]}
5... Nc6 {[%clk 0:02:44.4]} 6. Bd3 {[%clk 0:02:58.8]} 6... Nf6 {[%clk
0:02:43.6]} 7. c3 {[%clk 0:02:57.9]} 7... e6 {[%clk 0:02:41]} 8. Nbd2 {[%clk
0:02:56.4]} 8... Bd6 {[%clk 0:02:40.5]} 9. Bg3 {[%clk 0:02:50.9]} 9... O-O
{[%clk 0:02:37]} 10. Ne5 {[%clk 0:02:49.9]} 10... Bxe5 {[%clk 0:02:27.5]} 11.
dxe5 {[%clk 0:02:49.4]} 11... Nd7 {[%clk 0:02:26.9]} 12. f4 {[%clk 0:02:46.1]}
12... f6 {[%clk 0:02:08.7]} 13. Bh4 {[%clk 0:02:22.3]} 13... Qe8 {[%clk
0:02:07]} 14. exf6 {[%clk 0:02:17.4]} 14... Nxf6 {[%clk 0:02:05]} 15. Qe2 {[%clk
0:02:14.9]} 15... e5 {[%clk 0:02:01.5]} 16. Bxf6 {[%clk 0:02:04.6]} 16... Rxf6
{[%clk 0:01:57]} 17. e4 {[%clk 0:01:49.7]} 17... exf4 {[%clk 0:01:12.5]} 18.
exd5 {[%clk 0:01:44.1]} 18... Ne5 {[%clk 0:01:07.8]} 19. O-O {[%clk 0:01:41]}
19... Bg4 {[%clk 0:01:02.2]} 20. Qe4 {[%clk 0:01:28.9]} 20... Nxd3 {[%clk
0:00:55.4]} 21. Qxd3 {[%clk 0:01:28.4]} 21... Be2 {[%clk 0:00:56]} 22. Qe4
{[%clk 0:01:10.1]} 22... Bxf1 {[%clk 0:00:52.4]} 23. Rxf1 {[%clk 0:01:11]} 23...
Qf7 {[%clk 0:00:43.3]} 24. Re1 {[%clk 0:00:54.4]} 24... b5 {[%clk 0:00:35.3]}
25. Nf3 {[%clk 0:00:53.1]} 25... Rd8 {[%clk 0:00:25.2]} 26. Ng5 {[%clk
0:00:30.1]} 26... Qg6 {[%clk 0:00:23.7]} 27. Qxg6 {[%clk 0:00:18.3]} 27... hxg6
{[%clk 0:00:22.5]} 28. Ne4 {[%clk 0:00:08.6]} 28... Rxd5 {[%clk 0:00:16.7]} 29.
Nxf6+ {[%clk 0:00:08.4]} 29... gxf6 {[%clk 0:00:17.6]} 30. Re2 {[%clk
0:00:07.5]} 30... Kf7 {[%clk 0:00:13.6]} 31. Kf2 {[%clk 0:00:07.3]} 31... g5
{[%clk 0:00:13.9]} 32. Kf3 {[%clk 0:00:07.7]} 32... f5 {[%clk 0:00:11.9]} 33. h4
{[%clk 0:00:07.8]} 33... Rd3+ {[%clk 0:00:11.8]} 34. Kf2 {[%clk 0:00:07.7]}
34... g4 {[%clk 0:00:12.1]} 35. Re5 {[%clk 0:00:07.3]} 35... Rd2+ {[%clk
0:00:11.3]} 36. Kf1 {[%clk 0:00:07.1]} 36... Kf6 {[%clk 0:00:10.9]} 37. Rxc5
{[%clk 0:00:07.2]} 37... Rxb2 {[%clk 0:00:11.5]} 38. Rc6+ {[%clk 0:00:07.2]}
38... Ke5 {[%clk 0:00:11.7]} 39. Rc5+ {[%clk 0:00:07.6]} 39... Ke4 {[%clk
0:00:12.1]} 40. Rc7 {[%clk 0:00:04.1]} 40... Rxa2 {[%clk 0:00:09.8]} 41. h5
{[%clk 0:00:04.6]} 41... f3 {[%clk 0:00:09.7]} 42. Re7+ {[%clk 0:00:02.1]} 42...
Kf4 {[%clk 0:00:09.9]} 43. gxf3 {[%clk 0:00:02.8]} 43... Kxf3 {[%clk 0:00:09.5]}
44. Ke1 {[%clk 0:00:03.4]} 44... Rh2 {[%clk 0:00:06.8]} 45. Re5 {[%clk
0:00:02.3]} 45... f4 {[%clk 0:00:05.5]} 46. Rxb5 {[%clk 0:00:03.2]} 46... g3
{[%clk 0:00:05.4]} 0-1

[Event "*** Titled Tuesday Blitz"]
[Site "Chess.com"]
[Date "2020.03.03"]
[Round "3"]
[White "champ2005"]
[Black "IgorBjelobrk"]
[Result "1-0"]
[WhiteElo "2979"]
[BlackElo "2719"]
[TimeControl "180+1"]
[EndTime "13:31:11 PST"]
[Termination "champ2005 won by resignation"]

1. c4 {[%clk 0:03:00.9]} 1... e6 {[%clk 0:02:59.9]} 2. Nf3 {[%clk 0:02:59.6]}
2... d5 {[%clk 0:03:00]} 3. g3 {[%clk 0:02:58.9]} 3... Nf6 {[%clk 0:02:59.9]} 4.
d4 {[%clk 0:02:58.1]} 4... Bb4+ {[%clk 0:02:58.9]} 5. Bd2 {[%clk 0:02:58.2]}
5... Be7 {[%clk 0:02:57.9]} 6. Bg2 {[%clk 0:02:58.5]} 6... O-O {[%clk 0:02:58]}
7. O-O {[%clk 0:02:59]} 7... Nbd7 {[%clk 0:02:57.6]} 8. Qc2 {[%clk 0:02:56.8]}
8... Ne4 {[%clk 0:02:57.3]} 9. Nc3 {[%clk 0:02:53.9]} 9... Nxd2 {[%clk
0:02:54.5]} 10. Nxd2 {[%clk 0:02:54.8]} 10... c6 {[%clk 0:02:53.6]} 11. e4
{[%clk 0:02:54.4]} 11... dxe4 {[%clk 0:02:52.2]} 12. Ndxe4 {[%clk 0:02:54.2]}
12... f5 {[%clk 0:02:52.2]} 13. Nd2 {[%clk 0:02:51.1]} 13... e5 {[%clk
0:02:51.9]} 14. dxe5 {[%clk 0:02:44.8]} 14... Nxe5 {[%clk 0:02:51.3]} 15. Rfe1
{[%clk 0:02:44]} 15... Qc7 {[%clk 0:02:49.4]} 16. Rad1 {[%clk 0:02:37.8]} 16...
f4 {[%clk 0:02:48.2]} 17. Re4 {[%clk 0:02:25.9]} 17... Bf5 {[%clk 0:02:39.7]}
18. Rde1 {[%clk 0:02:26]} 18... Bxe4 {[%clk 0:02:27]} 19. Qxe4 {[%clk
0:02:20.4]} 19... Ng6 {[%clk 0:02:24]} 20. Nf3 {[%clk 0:02:06.8]} 20... fxg3
{[%clk 0:02:21.8]} 21. hxg3 {[%clk 0:02:05.9]} 21... Bc5 {[%clk 0:02:08.7]} 22.
Na4 {[%clk 0:01:57.1]} 22... Bb4 {[%clk 0:01:58.7]} 23. Re2 {[%clk 0:01:52.5]}
23... Be7 {[%clk 0:01:31.6]} 24. Bh3 {[%clk 0:01:44.4]} 24... Rad8 {[%clk
0:01:30.3]} 25. Bf5 {[%clk 0:01:38.3]} 25... b5 {[%clk 0:00:56.1]} 26. cxb5
{[%clk 0:01:24.1]} 26... cxb5 {[%clk 0:00:57]} 27. Nc3 {[%clk 0:01:24.7]} 27...
Bc5 {[%clk 0:00:49.9]} 28. Kg2 {[%clk 0:01:21]} 28... Qb6 {[%clk 0:00:46.6]} 29.
Nd5 {[%clk 0:01:10.5]} 29... Qd6 {[%clk 0:00:41]} 30. Be6+ {[%clk 0:00:38.3]}
30... Kh8 {[%clk 0:00:40.1]} 31. Ng5 {[%clk 0:00:38.8]} 31... Rde8 {[%clk
0:00:28.5]} 32. Qg4 {[%clk 0:00:28]} 32... h6 {[%clk 0:00:17.7]} 33. Qe4 {[%clk
0:00:21]} 33... Rxe6 {[%clk 0:00:14]} 34. Nxe6 {[%clk 0:00:18.3]} 34... Re8
{[%clk 0:00:13.2]} 35. b4 {[%clk 0:00:17.5]} 35... Nf8 {[%clk 0:00:09]} 36. bxc5
{[%clk 0:00:12.3]} 36... Qxe6 {[%clk 0:00:09.4]} 37. Qxe6 {[%clk 0:00:12.7]}
37... Rxe6 {[%clk 0:00:08.9]} 38. Rxe6 {[%clk 0:00:12.1]} 38... Nxe6 {[%clk
0:00:09.8]} 39. c6 {[%clk 0:00:13]} 39... a5 {[%clk 0:00:07.9]} 40. c7 {[%clk
0:00:13.2]} 40... Nxc7 {[%clk 0:00:08.1]} 41. Nxc7 {[%clk 0:00:14.1]} 41... b4
{[%clk 0:00:08.6]} 42. Nd5 {[%clk 0:00:13.8]} 42... Kg8 {[%clk 0:00:08.8]} 43.
Kf3 {[%clk 0:00:13.1]} 43... Kf7 {[%clk 0:00:09]} 44. Ke4 {[%clk 0:00:13.6]}
44... g5 {[%clk 0:00:07.8]} 45. g4 {[%clk 0:00:13.2]} 45... Ke6 {[%clk
0:00:06.7]} 46. Kd4 {[%clk 0:00:13.3]} 46... Kd6 {[%clk 0:00:06.9]} 47. Kc4
{[%clk 0:00:08.7]} 47... Ke5 {[%clk 0:00:06.8]} 48. Ne3 {[%clk 0:00:05.9]} 48...
Ke4 {[%clk 0:00:06.6]} 49. Kb5 {[%clk 0:00:06.1]} 49... Kf3 {[%clk 0:00:06.2]}
50. Kxa5 {[%clk 0:00:06]} 50... Kxf2 {[%clk 0:00:06.1]} 51. Nf5 {[%clk
0:00:06.5]} 1-0